lending/lending_fUSD_20240219
["ID","MTS","AMOUNT","RATE_DAILY","PERIOD"]
[314478344,1708375869111,-398.02291,0.00046575,14]
[314478345,1708375869121,-500.0,0.00046575,30]
[314478346,1708375869130,-398.02291,0.00046575,14]
[314478347,1708375869139,-500.0,0.00046575,30]
[314478348,1708375869149,-500.0,0.00046575,30]
[314478349,1708375869160,-500.0,0.00046575,30]
[314478350,1708375869169,-500.0,0.00046575,30]
[314478351,1708375869179,-500.0,0.00046575,30]
[314478352,1708375869189,-500.0,0.00046575,30]
[314478353,1708375869198,-585.21132152,0.00046575,30]
[314478354,1708375869207,-1291.14,0.00046575,30]
[314478355,1708375869216,-500.0,0.00046575,30]
[314478356,1708375869237,-500.0,0.00046575,30]
[314478357,1708375869249,-1226.84,0.00046575,30]
[314478358,1708375869266,-500.0,0.00046575,30]
[314478359,1708375869275,-500.0,0.00046575,30]
[314478360,1708375869285,-500.0,0.00046575,30]
[314478361,1708375869297,-500.0,0.00046575,30]
[314478362,1708375869306,-764.49,0.00046575,30]
[314478363,1708375869316,-500.0,0.00046575,30]
[314478364,1708375869325,-500.0,0.00046575,30]
[314478365,1708375869334,-500.0,0.00046575,30]
[314478366,1708375869344,-500.0,0.00046575,30]
[314478367,1708375869353,-625.5,0.00046575,30]
[314478368,1708375869363,-500.0,0.00046575,30]
[314478369,1708375869373,-500.0,0.00046575,30]
[314478370,1708375869382,-500.0,0.00046575,30]
[314478371,1708375869391,-2287.569706,0.00046575,14]
[314478372,1708375869402,-2287.569706,0.00046575,14]
[314478373,1708375869412,-2287.569706,0.00046575,14]
[314478374,1708375869423,-871.41,0.00046575,30]
[314478375,1708375869433,-500.0,0.00046575,30]
[314478376,1708375869443,-500.0,0.00046575,30]
[314478377,1708375869453,-937.75,0.00046575,30]
[314478378,1708375869463,-519.17965098,0.00046575,30]
[314478379,1708375869473,-500.0,0.00046575,30]
[314478380,1708375869484,-2287.569706,0.00046575,14]
[314478381,1708375869494,-500.0,0.00046575,30]
[314478382,1708375869504,-2287.569706,0.00046575,14]
[314478383,1708375869515,-2287.569706,0.00046575,14]
[314478384,1708375869531,-500.0,0.00046575,30]
[314478385,1708375869541,-500.0,0.00046575,30]
[314478386,1708375869559,-500.0,0.00046575,30]
[314478387,1708375869572,-500.0,0.00046575,30]
[314478388,1708375869582,-500.0,0.00046575,30]
[314478389,1708375869593,-500.0,0.00046575,30]
[314478390,1708375869603,-2580.06,0.00046575,30]
[314478391,1708375869613,-500.0,0.00046575,30]
[314478392,1708375869623,-500.0,0.00046575,30]
[314478393,1708375869633,-500.0,0.00046575,30]
[314478394,1708375869643,-192.62413725,0.00046575,30]
[314478395,1708375869652,-500.0,0.00046575,30]
[314478396,1708375869662,-874.69,0.00046575,30]
[314478397,1708375869672,-500.0,0.00046575,30]
[314478398,1708375869688,-580.6,0.00046575,30]
[314478399,1708375869698,-742.82,0.00046575,30]
[314478400,1708375869708,-1385.86,0.00046575,30]
[314478401,1708375869718,-523.75559048,0.00046575,30]
[314478402,1708375869727,-626.34,0.00046575,30]
[314478403,1708375869737,-500.0,0.00046575,30]
[314478404,1708375869746,-1122.0,0.00046575,30]
[314478405,1708375869756,-500.0,0.00046575,30]
[314478406,1708375869766,-500.0,0.00046575,30]
[314478407,1708375869775,-500.0,0.00046575,30]
[314478408,1708375869790,-500.0,0.00046575,30]
[314478409,1708375869800,-511.04452433,0.00046575,30]
[314478410,1708375869821,-500.0,0.00046575,30]
[314478411,1708375869832,-500.0,0.00046575,30]
[314478412,1708375869842,-673.8,0.00046575,30]
[314478413,1708375869852,-994.22465982,0.00046575,120]
[314478414,1708375869862,-948.86,0.00046575,30]
[314478415,1708375869871,-151.0,0.00046575,14]
[314478416,1708375869882,-500.0,0.00046575,30]
[314478417,1708375869892,-500.0,0.00046575,30]
[314478418,1708375869901,-151.0,0.00046575,14]
[314478419,1708375869910,-151.0,0.00046575,14]
[314478420,1708375869920,-500.0,0.00046575,30]
[314478421,1708375869929,-500.0,0.00046575,30]
[314478422,1708375869938,-500.0,0.00046575,30]
[314478423,1708375869948,-500.0,0.00046575,30]
[314478424,1708375869957,-1101.95,0.00046575,30]
[314478425,1708375869966,-500.0,0.00046575,30]
[314478426,1708375869976,-500.0,0.00046575,20]
[314478427,1708375869985,-166.655087,0.00046575,14]
[314478428,1708375869994,-500.0,0.00046575,20]
[314478429,1708375870005,-166.655087,0.00046575,14]
[314478430,1708375870014,-500.0,0.00046575,20]
[314478431,1708375870024,-166.655087,0.00046575,14]
[314478432,1708375870033,-500.0,0.00046575,20]
[314478433,1708375870042,-500.0,0.00046575,30]
[314478434,1708375870052,-500.0,0.00046575,20]
[314478435,1708375870064,-500.0,0.00046575,20]
[314478436,1708375870079,-500.0,0.00046575,20]
[314478437,1708375870088,-526.15621384,0.00046575,20]
[314478438,1708375870097,-500.0,0.00046575,30]
[314478439,1708375870107,-500.0,0.00046575,30]
[314478440,1708375870116,-500.0,0.00046575,30]
[314478441,1708375870127,-681.52,0.00046575,30]
[314478442,1708375870137,-500.0,0.00046575,30]
[314478443,1708375870147,-500.0,0.00046575,30]
[314478444,1708375870156,-1174.33,0.00046575,30]
[314478445,1708375870166,-981.09,0.00046575,30]
[314478446,1708375870175,-500.0,0.00046575,30]
[314478447,1708375870185,-500.0,0.00046575,30]
[314478448,1708375870194,-4511.29,0.00046575,30]
[314478449,1708375870204,-1043.21,0.00046575,30]
[314478450,1708375870213,-500.0,0.00046575,30]
[314478451,1708375870224,-2077.3,0.00046575,30]
[314478452,1708375870233,-500.0,0.00046575,30]
[314478453,1708375870243,-500.0,0.00046575,30]
[314478454,1708375870252,-500.0,0.00046575,30]
[314478455,1708375870262,-500.0,0.00046575,30]
[314478456,1708375870271,-500.0,0.00046575,30]
[314478457,1708375870280,-500.0,0.00046575,30]
[314478458,1708375870289,-250.0,0.00046575,30]
[314478459,1708375870299,-207.089613,0.00046575,14]
[314478460,1708375870309,-228.582466,0.00046575,14]
[314478461,1708375870319,-207.089613,0.00046575,14]
[314478462,1708375870329,-500.0,0.00046575,30]
[314478463,1708375870339,-207.089613,0.00046575,14]
[314478464,1708375870349,-888.3,0.00046575,30]
[314478465,1708375870359,-610.38,0.00046575,30]
[314478466,1708375870369,-511.90119052,0.00046575,30]
[314478467,1708375870379,-500.0,0.00046575,30]
[314478468,1708375870388,-500.0,0.00046575,30]
[314478469,1708375870399,-500.0,0.00046575,30]
[314478470,1708375870408,-3093.94,0.00046575,30]
[314478471,1708375870418,-1342.73,0.00046575,30]
[314478472,1708375870428,-500.0,0.00046575,30]
[314478473,1708375870437,-500.0,0.00046575,30]
[314478474,1708375870448,-207.089613,0.00046575,14]
[314478475,1708375870458,-207.089613,0.00046575,14]
[314478476,1708375870647,-4450.76,0.00046575,30]
[314478477,1708375870657,-207.089613,0.00046575,14]
[314478478,1708375870666,-2986.67,0.00046575,30]
[314478479,1708375870676,-927.23,0.00046575,30]
[314478480,1708375870685,-329.07462655,0.00046575,30]
[314478481,1708375870694,-500.0,0.00046575,30]
[314478482,1708375870703,-500.0,0.00046575,30]
[314478483,1708375870712,-500.0,0.00046575,30]
[314478484,1708375870721,-500.0,0.00046575,30]
[314478485,1708375870730,-4576.97,0.00046575,30]
[314478486,1708375870739,-500.0,0.00046575,30]
[314478487,1708375870748,-1346.18,0.00046575,30]
[314478488,1708375870758,-500.0,0.00046575,30]
[314478489,1708375870767,-1701.809969,0.00046575,14]
[314478490,1708375870776,-1701.809969,0.00046575,14]
[314478491,1708375870785,-1701.809969,0.00046575,14]
[314478492,1708375870795,-500.0,0.00046575,30]
[314478493,1708375870804,-2880.36,0.00046575,30]
[314478494,1708375870814,-371.66738157,0.00046575,30]
[314478495,1708375870823,-538.91086035,0.00046575,30]
[314478496,1708375870832,-500.0,0.00046575,30]
[314478497,1708375870842,-1701.809969,0.00046575,14]
[314478498,1708375870857,-1701.809969,0.00046575,14]
[314478499,1708375870867,-500.0,0.00046575,30]
[314478500,1708375870875,-1701.809969,0.00046575,14]
[314478501,1708375870884,-540.25,0.00046575,30]
[314478502,1708375870894,-942.11,0.00046575,30]
[314478503,1708375870903,-500.0,0.00046575,30]
[314478504,1708375870913,-802.39,0.00046575,30]
[314478505,1708375870922,-151.0,0.00046575,14]
[314478506,1708375870931,-500.0,0.00046575,30]
[314478507,1708375870940,-151.0,0.00046575,14]
[314478508,1708375870950,-500.0,0.00046575,30]
[314478509,1708375870959,-500.0,0.00046575,30]
[314478510,1708375870968,-151.0,0.00046575,14]
[314478511,1708375870978,-500.0,0.00046575,30]
[314478512,1708375870987,-3501.98,0.00046575,30]
[314478513,1708375870997,-500.0,0.00046575,30]
[314478514,1708375871006,-3067.49,0.00046575,30]
[314478515,1708375871016,-1000.0,0.00046575,7]
[314478516,1708375871025,-500.0,0.00046575,30]
[314478517,1708375871035,-500.0,0.00046575,30]
[314478518,1708375871044,-500.0,0.00046575,30]
[314478519,1708375871053,-752.55,0.00046575,30]
[314478520,1708375871064,-500.0,0.00046575,30]
[314478521,1708375871074,-500.0,0.00046575,30]
[314478522,1708375871088,-500.0,0.00046575,30]
[314478523,1708375871097,-500.0,0.00046575,30]
[314478524,1708375871107,-500.0,0.00046575,30]
[314478525,1708375871116,-983.46,0.00046575,30]
[314478526,1708375871126,-500.0,0.00046575,30]
[314478527,1708375871135,-2258.21,0.00046575,30]
[314478528,1708375871144,-535.87484668,0.00046575,30]
[314478529,1708375871156,-500.0,0.00046575,30]
[314478530,1708375871166,-3285.56,0.00046575,30]
[314478531,1708375871176,-708.73,0.00046575,30]
[314478532,1708375871186,-500.0,0.00046575,30]
[314478533,1708375871196,-500.0,0.00046575,30]
[314478534,1708375871205,-1637.57,0.00046575,30]
[314478535,1708375871215,-500.0,0.00046575,30]
[314478536,1708375871224,-500.0,0.00046575,30]
[314478537,1708375871233,-764.0,0.00046575,30]
[314478538,1708375871243,-2380.23,0.00046575,30]
[314478539,1708375871252,-947.27,0.00046575,30]
[314478540,1708375871262,-500.0,0.00046575,30]
[314478541,1708375871271,-500.0,0.00046575,30]
[314478542,1708375871281,-500.0,0.00046575,30]
[314478543,1708375871290,-500.0,0.00046575,30]
[314478544,1708375871300,-500.0,0.00046575,30]
[314478545,1708375871310,-500.0,0.00046575,30]
[314478546,1708375871320,-500.0,0.00046575,30]
[314478547,1708375871329,-23500.73,0.00046575,30]
[314478548,1708375871339,-500.0,0.00046575,30]
[314478549,1708375871349,-5708.36,0.00046575,30]
[314478550,1708375871358,-500.0,0.00046575,30]
[314478551,1708375871368,-500.0,0.00046575,30]
[314478552,1708375871378,-500.0,0.00046575,30]
[314478553,1708375871388,-500.0,0.00046575,30]
[314478554,1708375871398,-521.33,0.00046575,30]
[314478555,1708375871407,-500.0,0.00046575,30]
[314478556,1708375871417,-3029.82,0.00046575,30]
[314478557,1708375871426,-500.0,0.00046575,30]
[314478558,1708375871436,-1961.93,0.00046575,30]
[314478559,1708375871445,-500.0,0.00046575,30]
[314478560,1708375871454,-532.9,0.00046575,30]
[314478561,1708375871464,-500.0,0.00046575,30]
[314478562,1708375871474,-2118.66,0.00046575,30]
[314478563,1708375871483,-599.57,0.00046575,30]
[314478564,1708375871492,-500.0,0.00046575,30]
[314478565,1708375871502,-500.0,0.00046575,30]
[314478566,1708375871512,-500.0,0.00046575,30]
[314478567,1708375871521,-500.0,0.00046575,30]
[314478568,1708375871531,-500.0,0.00046575,30]
[314478569,1708375871541,-500.0,0.00046575,30]
[314478570,1708375871551,-500.0,0.00046575,30]
[314478571,1708375871560,-500.0,0.00046575,30]
[314478572,1708375871569,-500.0,0.00046575,30]
[314478573,1708375871579,-2534.45,0.00046575,30]
[314478574,1708375871588,-2219.53,0.00046575,30]
[314478575,1708375871598,-1000.0,0.00046575,30]
[314478576,1708375871608,-500.0,0.00046575,30]
[314478577,1708375871617,-151.0,0.00046575,14]
[314478578,1708375871627,-4072.8,0.00046575,30]
[314478579,1708375871636,-151.0,0.00046575,14]
[314478580,1708375871646,-500.0,0.00046575,30]
[314478581,1708375871655,-151.0,0.00046575,14]
[314478582,1708375871664,-6525.8,0.00046575,30]
[314478583,1708375871674,-500.0,0.00046575,30]
[314478584,1708375871683,-1226.32,0.00046575,30]
[314478585,1708375871692,-3574.68,0.00046575,30]
[314478586,1708375871704,-2415.59,0.00046575,30]
[314478587,1708375871713,-500.0,0.00046575,30]
[314478588,1708375871722,-500.0,0.00046575,30]
[314478589,1708375871732,-500.0,0.00046575,30]
[314478590,1708375871741,-500.0,0.00046575,30]
[314478591,1708375871752,-500.0,0.00046575,30]
[314478592,1708375871761,-895.28,0.00046575,30]
[314478593,1708375871770,-1108.54,0.00046575,30]
[314478594,1708375871779,-160.9193771,0.00046575,30]
[314478595,1708375871788,-500.0,0.00046575,30]
[314478596,1708375871798,-500.0,0.00046575,30]
[314478597,1708375871808,-500.0,0.00046575,30]
[314478598,1708375871817,-500.0,0.00046575,30]
[314478599,1708375871826,-500.0,0.00046575,30]
[314478600,1708375871836,-2463.17,0.00046575,30]
[314478601,1708375871845,-500.0,0.00046575,30]
[314478602,1708375871855,-217.505874,0.00046575,14]
[314478603,1708375871865,-500.0,0.00046575,30]
[314478604,1708375871881,-1236.32,0.00046575,30]
[314478605,1708375871903,-500.0,0.00046575,30]
[314478606,1708375871919,-676.335609,0.00046575,14]
[314478607,1708375871941,-676.335609,0.00046575,14]
[314478608,1708375871957,-503.07349153,0.00046575,30]
[314478609,1708375871975,-676.335609,0.00046575,14]
[314478610,1708375871993,-2672.0,0.00046575,30]
[314478611,1708375872009,-500.0,0.00046575,30]
[314478612,1708375872030,-500.0,0.00046575,30]
[314478613,1708375872045,-500.0,0.00046575,30]
[314478614,1708375872068,-500.0,0.00046575,30]
[314478615,1708375872090,-768.47,0.00046575,30]
[314478616,1708375872103,-500.0,0.00046575,30]
[314478617,1708375872120,-676.335609,0.00046575,14]
[314478618,1708375872137,-676.335609,0.00046575,14]
[314478619,1708375872151,-500.0,0.00046575,30]
[314478620,1708375872166,-676.335609,0.00046575,14]
[314478621,1708375872180,-500.0,0.00046575,30]
[314478622,1708375872195,-1506.06,0.00046575,30]
[314478623,1708375872210,-500.0,0.00046575,30]
[314478624,1708375872224,-513.55379775,0.00046575,30]
[314478625,1708375872240,-4807.82,0.00046575,30]
[314478626,1708375872255,-1592.25,0.00046575,30]
[314478627,1708375872271,-2737.65,0.00046575,30]
[314478628,1708375872286,-947.04,0.00046575,30]
[314478629,1708375872300,-423.34077199,0.00046575,30]
[314478630,1708375872315,-500.0,0.00046575,30]
[314478631,1708375872330,-500.0,0.00046575,30]
[314478632,1708375872345,-500.0,0.00046575,30]
[314478633,1708375872361,-3582.15,0.00046575,30]
[314478634,1708375872376,-1685.16,0.00046575,30]
[314478635,1708375872390,-500.0,0.00046575,30]
[314478636,1708375872405,-500.0,0.00046575,30]
[314478637,1708375872420,-1478.0,0.00046575,30]
[314478638,1708375872442,-500.0,0.00046575,30]
[314478639,1708375872457,-840.54,0.00046575,30]
[314478640,1708375872472,-500.0,0.00046575,30]
[314478641,1708375872488,-504.24432173,0.00046575,30]
[314478642,1708375872503,-689.96,0.00046575,30]
[314478643,1708375872517,-500.0,0.00046575,30]
[314478644,1708375872532,-2210.61,0.00046575,30]
[314478645,1708375872547,-2915.8,0.00046575,30]
[314478646,1708375872564,-1225.15,0.00046575,30]
[314478647,1708375872579,-1225.15,0.00046575,30]
[314478648,1708375872594,-500.0,0.00046575,30]
[314478649,1708375872610,-1225.15,0.00046575,30]
[314478650,1708375872626,-2089.99,0.00046575,30]
[314478651,1708375872642,-500.0,0.00046575,30]
[314478652,1708375872657,-156.23018,0.00046575,14]
[314478653,1708375872672,-626.95456096,0.00046575,30]
[314478654,1708375872685,-1225.15,0.00046575,30]
[314478655,1708375872700,-1225.15,0.00046575,30]
[314478656,1708375872715,-163.74511,0.00046575,14]
[314478657,1708375872729,-1225.15,0.00046575,30]
[314478658,1708375872744,-163.74511,0.00046575,14]
[314478659,1708375872761,-1225.15,0.00046575,30]
[314478660,1708375872776,-163.74511,0.00046575,14]
[314478661,1708375872791,-1225.15,0.00046575,30]
[314478662,1708375872807,-500.0,0.00046575,30]
[314478663,1708375872822,-1225.15,0.00046575,30]
[314478664,1708375872837,-1225.15,0.00046575,30]
[314478665,1708375872851,-1225.15,0.00046575,30]
[314478666,1708375872866,-500.0,0.00046575,30]
[314478667,1708375872881,-1225.15,0.00046575,30]
[314478668,1708375872896,-2806.73,0.00046575,30]
[314478669,1708375872911,-1225.15,0.00046575,30]
[314478670,1708375872926,-1225.15,0.00046575,30]
[314478671,1708375872940,-500.0,0.00046575,30]
[314478672,1708375872955,-163.74511,0.00046575,14]
[314478673,1708375872970,-500.0,0.00046575,30]
[314478674,1708375872986,-1225.15,0.00046575,30]
[314478675,1708375873000,-163.74511,0.00046575,14]
[314478676,1708375873015,-1225.15,0.00046575,30]
[314478677,1708375873031,-163.74511,0.00046575,14]
[314478678,1708375873046,-523.88826976,0.00046575,30]
[314478679,1708375873061,-500.0,0.00046575,30]
[314478680,1708375873077,-995.73,0.00046575,30]
[314478681,1708375873094,-500.0,0.00046575,30]
[314478682,1708375873109,-535.41,0.00046575,30]
[314478683,1708375873124,-1225.15,0.00046575,30]
[314478684,1708375873139,-1225.15,0.00046575,30]
[314478685,1708375873155,-1225.15,0.00046575,30]
[314478686,1708375873170,-1225.15,0.00046575,30]
[314478687,1708375873186,-1225.15,0.00046575,30]
[314478688,1708375873201,-4007.0,0.00046575,30]
[314478689,1708375873216,-500.0,0.00046575,30]
[314478690,1708375873231,-1225.15,0.00046575,30]
[314478691,1708375873245,-1225.15,0.00046575,30]
[314478692,1708375873261,-5460.88,0.00046575,30]
[314478693,1708375873276,-720.61,0.00046575,30]
[314478694,1708375873292,-1225.3282026,0.00046575,30]
[314478695,1708375873306,-500.0,0.00046575,30]
[314478696,1708375873321,-153.307476,0.00046575,7]
[314478697,1708375873336,-500.0,0.00046575,30]
[314478698,1708375873360,-770.97,0.00046575,30]
[314478699,1708375873380,-2873.04,0.00046575,30]
[314478700,1708375873396,-500.0,0.00046575,30]
[314478701,1708375873413,-3457.64,0.00046575,30]
[314478702,1708375873428,-500.0,0.00046575,30]
[314478703,1708375873444,-500.0,0.00046575,30]
[314478704,1708375873459,-500.0,0.00046575,30]
[314478705,1708375873479,-3954.52,0.00046575,30]
[314478706,1708375873494,-500.0,0.00046575,30]
[314478707,1708375873510,-151.0,0.00046575,14]
[314478708,1708375873527,-2900.34,0.00046575,30]
[314478709,1708375873543,-151.0,0.00046575,14]
[314478710,1708375873568,-1032.0,0.00046575,30]
[314478711,1708375873583,-151.0,0.00046575,14]
[314478712,1708375873599,-1711.5,0.00046575,30]
[314478713,1708375873616,-500.0,0.00046575,30]
[314478714,1708375873631,-500.0,0.00046575,30]
[314478715,1708375873646,-500.0,0.00046575,30]
[314478716,1708375873660,-1637.24,0.00046575,30]
[314478717,1708375873676,-1605.65,0.00046575,30]
[314478718,1708375873690,-500.0,0.00046575,30]
[314478719,1708375873705,-500.0,0.00046575,30]
[314478720,1708375873720,-4980.44,0.00046575,30]
[314478721,1708375873729,-500.0,0.00046575,30]
[314478722,1708375873738,-1340.91,0.00046575,30]
[314478723,1708375873748,-500.0,0.00046575,30]
[314478724,1708375873758,-1138.43,0.00046575,30]
[314478725,1708375873767,-3294.28,0.00046575,30]
[314478726,1708375873776,-4358.32,0.00046575,30]
[314478727,1708375874090,-500.0,0.00046575,30]
[314478728,1708375874105,-500.0,0.00046575,30]
[314478729,1708375874117,-500.0,0.00046575,30]
[314478730,1708375874127,-500.0,0.00046575,30]
[314478731,1708375874136,-500.0,0.00046575,30]
[314478732,1708375874146,-1721.24,0.00046575,30]
[314478733,1708375874155,-151.0,0.00046575,14]
[314478734,1708375874177,-151.0,0.00046575,14]
[314478735,1708375874195,-2226.31,0.00046575,30]
[314478736,1708375874207,-151.0,0.00046575,14]
[314478737,1708375874216,-500.0,0.00046575,30]
[314478738,1708375874226,-11469.95,0.00046575,30]
[314478739,1708375874236,-500.0,0.00046575,30]
[314478740,1708375874246,-500.0,0.00046575,30]
[314478741,1708375874256,-151.0,0.00046575,14]
[314478742,1708375874265,-500.0,0.00046575,30]
[314478743,1708375874275,-151.0,0.00046575,14]
[314478744,1708375874284,-500.0,0.00046575,30]
[314478745,1708375874301,-151.0,0.00046575,14]
[314478746,1708375874310,-500.0,0.00046575,30]
[314478747,1708375874332,-500.0,0.00046575,30]
[314478748,1708375874341,-500.0,0.00046575,30]
[314478749,1708375874351,-1155.9,0.00046575,30]
[314478750,1708375874360,-914.27,0.00046575,30]
[314478751,1708375874370,-4304.4,0.00046575,30]
[314478752,1708375874379,-3503.11,0.00046575,30]
[314478753,1708375874388,-500.0,0.00046575,30]
[314478754,1708375874398,-500.0,0.00046575,30]
[314478755,1708375874407,-500.0,0.00046575,30]
[314478756,1708375874416,-2631.73,0.00046575,30]
[314478757,1708375874426,-500.0,0.00046575,30]
[314478758,1708375874435,-500.0,0.00046575,30]
[314478759,1708375874445,-500.0,0.00046575,30]
[314478760,1708375874454,-7606.19,0.00046575,30]
[314478761,1708375874464,-500.0,0.00046575,30]
[314478762,1708375874472,-500.0,0.00046575,30]
[314478763,1708375874481,-500.0,0.00046575,30]
[314478764,1708375874491,-393.8321706,0.00046575,30]
[314478765,1708375874501,-2816.09,0.00046575,30]
[314478766,1708375874510,-1106.22,0.00046575,30]
[314478767,1708375874519,-500.0,0.00046575,30]
[314478768,1708375874528,-1288.03,0.00046575,30]
[314478769,1708375874538,-500.0,0.00046575,30]
[314478770,1708375874547,-500.0,0.00046575,30]
[314478771,1708375874556,-500.0,0.00046575,30]
[314478772,1708375874566,-800.19,0.00046575,30]
[314478773,1708375874576,-183.040066,0.00046575,14]
[314478774,1708375874585,-500.0,0.00046575,30]
[314478775,1708375874595,-183.040066,0.00046575,14]
[314478776,1708375874604,-183.040066,0.00046575,14]
[314478777,1708375874613,-500.0,0.00046575,30]
[314478778,1708375874623,-500.0,0.00046575,30]
[314478779,1708375874632,-500.0,0.00046575,30]
[314478780,1708375874642,-5000.0,0.00046575,30]
[314478781,1708375874651,-4924.17,0.00046575,30]
[314478782,1708375874661,-2194.88,0.00046575,30]
[314478783,1708375874670,-660.946317,0.00046575,14]
[314478784,1708375874679,-6760.53,0.00046575,30]
[314478785,1708375874688,-500.0,0.00046575,30]
[314478786,1708375874698,-660.946317,0.00046575,14]
[314478787,1708375874707,-1418.43,0.00046575,30]
[314478788,1708375874716,-660.946317,0.00046575,14]
[314478789,1708375874725,-707.46,0.00046575,30]
[314478790,1708375874734,-500.0,0.00046575,30]
[314478791,1708375874743,-500.0,0.00046575,30]
[314478792,1708375874753,-500.0,0.00046575,30]
[314478793,1708375874761,-1586.82,0.00046575,30]
[314478794,1708375874771,-500.0,0.00046575,30]
[314478795,1708375874779,-660.946317,0.00046575,14]
[314478796,1708375874788,-183.040066,0.00046575,14]
[314478797,1708375874798,-660.946317,0.00046575,14]
[314478798,1708375874807,-500.0,0.00046575,30]
[314478799,1708375874816,-6176.75,0.00046575,30]
[314478800,1708375874825,-183.040066,0.00046575,14]
[314478801,1708375874834,-660.946317,0.00046575,14]
[314478802,1708375874843,-183.040066,0.00046575,14]
[314478803,1708375874852,-974.61,0.00046575,30]
[314478804,1708375874861,-503.9569019,0.00046575,30]
[314478805,1708375874870,-500.0,0.00046575,30]
[314478806,1708375874879,-502.06,0.00046575,30]
[314478807,1708375874888,-620.96,0.00046575,30]
[314478808,1708375874897,-500.0,0.00046575,30]
[314478809,1708375874906,-500.0,0.00046575,30]
[314478810,1708375874915,-500.0,0.00046575,30]
[314478811,1708375874925,-500.0,0.00046575,30]
[314478812,1708375874934,-500.0,0.00046575,30]
[314478813,1708375874943,-1370.86,0.00046575,30]
[314478814,1708375874952,-18642.5,0.00046575,30]
[314478815,1708375874961,-194.517058,0.00046575,14]
[314478816,1708375874970,-500.0,0.00046575,30]
[314478817,1708375874979,-194.517058,0.00046575,14]
[314478818,1708375874988,-194.517058,0.00046575,14]
[314478819,1708375874997,-43487.96,0.00046575,30]
[314478820,1708375875007,-561.28610605,0.00046575,30]
[314478821,1708375875016,-500.0,0.00046575,30]
[314478822,1708375875025,-957.13,0.00046575,30]
[314478823,1708375875034,-500.0,0.00046575,30]
[314478824,1708375875043,-664.1,0.00046575,30]
[314478825,1708375875053,-500.0,0.00046575,30]
[314478826,1708375875065,-1319.59,0.00046575,30]
[314478827,1708375875079,-2270.35,0.00046575,30]
[314478828,1708375875091,-194.517058,0.00046575,14]
[314478829,1708375875100,-1421.33,0.00046575,30]
[314478830,1708375875110,-194.517058,0.00046575,14]
[314478831,1708375875122,-500.0,0.00046575,30]
[314478832,1708375875131,-194.517058,0.00046575,14]
[314478833,1708375875141,-500.0,0.00046575,30]
[314478834,1708375875150,-576.0236149,0.00046575,20]
[314478835,1708375875161,-500.0,0.00046575,30]
[314478836,1708375875171,-500.0,0.00046575,30]
[314478837,1708375875181,-500.0,0.00046575,30]
[314478838,1708375875190,-500.0,0.00046575,30]
[314478839,1708375875200,-500.0,0.00046575,30]
[314478840,1708375875209,-1370.06,0.00046575,30]
[314478841,1708375875219,-500.0,0.00046575,30]
[314478842,1708375875228,-3424.97,0.00046575,30]
[314478843,1708375875238,-500.0,0.00046575,30]